Cogmind - Beta 12 @@@ ROGUE MODE // 2023.07.08 @ 15:04:11 Player: kawyua Result: Destroyed by D-53 Grenadier with Mini Grenade Launcher Performance ------------- Evolutions (0) 0 Regions Visited (4) 800 Robots Destroyed (13) 65 Value Destroyed (332) 332 Prototype IDs (1) 20 Alien Tech Used (0) 0 Bonus (-110) -110 TOTAL SCORE: 1107 Bonus ------- Friendly Fire -110 Cogmind --------- Core Integrity 0/250 Matter 200/300 Energy 100/100 System Corruption 0% Temperature Cool (0) Movement Treading (320) Ox2 Location -9/Mines Parts ------- > --- POWER (1) -------- (None) > --- PROPULSION (2) --- Light Treads > --- UTILITY (2) ------ High-capacity Storage Unit > --- WEAPON (2) ------- Grenade Launcher > --- INVENTORY (20) --- Ion Engine Light Nuclear Core Light Treads Light Treads Large Matter Pod (150) Large Matter Pod (150) High-capacity Matter Pod (200) Weight Redist. System Experimental Sensor Array Improved Terrain Scanner Makeshift Cloaking Device Small Laser Small Laser Small Laser Small Laser Assault Rifle Heavy Assault Rifle Improved Light Cannon Mining Laser Makeshift Hammer Peak State ------------ > --- POWER ------------ Makeshift Power Source > --- PROPULSION ------- Light Treads Light Treads > --- UTILITY ---------- High-capacity Storage Unit Experimental Sensor Array > --- WEAPON ----------- Small Laser Small Laser > --- INVENTORY -------- Ion Engine Light Nuclear Core Light Treads Light Treads Large Matter Pod Large Matter Pod High-capacity Matter Pod Weight Redist. System Improved Terrain Scanner Seismic Detector Makeshift Cloaking Device Small Laser Small Laser Assault Rifle Improved Light Cannon Grenade Launcher Grenade Launcher Mining Laser Makeshift Hammer [Rating: 21] Favorites ----------- Power Makeshift Power Source Engine Makeshift Power Source Power Core Light Nuclear Core Propulsion Light Treads Treads Light Treads Leg Aluminum Leg Utility Seismic Detector Device Seismic Detector Storage High-capacity Storage Unit Weapon Small Laser Energy Gun Small Laser Launcher Grenade Launcher Special Weapon Mining Laser Build | -11 -10 -10 -10 -9 ------- Run | Jun Mat Min Exi Min Slots Evolved . | . . . . . Power . | . . . . . Propulsion . | . . . . . Utility . | . . . . . Weapon . | . . . . . Parts Attached 22 | 7 7 . 4 4 Power 3 | 1 1 . 1 . Engine 2 | 1 . . 1 . Core 1 | . 1 . . . Reactor . | . . . . . Propulsion 6 | 2 3 . 1 . Treads 3 | . 2 . 1 . Leg 3 | 2 1 . . . Wheel . | . . . . . Hover . | . . . . . Flight . | . . . . . Utility 6 | 2 . . 2 2 Device 3 | 1 . . . 2 Storage 3 | 1 . . 2 . Processor . | . . . . . Hackware . | . . . . . Protection . | . . . . . Artifact . | . . . . . Weapon 7 | 2 3 . . 2 Energy Gun 4 | 2 2 . . . Energy Cannon . | . . . . . Ballistic Gun . | . . . . . Ballistic Cannon . | . . . . . Launcher 2 | . . . . 2 Special Weapon 1 | . 1 . . . Impact Weapon . | . . . . . Slashing Weapon . | . . . . . Piercing Weapon . | . . . . . Special Melee Weapon . | . . . . . Unidentified Prototypes 1 | . . . . 1 Parts Lost 7 | . 3 . . 4 Power 2 | . 1 . . 1 Propulsion 2 | . 1 . . 1 Utility 1 | . . . . 1 Weapon 2 | . 1 . . 1 Highest Loss Streak 4 | . 3 . . 4 To Critical Strikes . | . . . . . Average Slot Usage (%) 99 | . 98 100 100 99 Engine 10 | . 6 . 10 13 Core 3 | . 5 14 3 . Treads 25 | . 12 28 28 28 Leg 2 | . 15 . . . Device 13 | . 14 14 14 13 Storage 14 | . 14 14 14 14 Energy Gun 25 | . 25 28 28 22 Launcher 1 | . . . . 4 Naked Turns . | . . . . . Heaviest Build 51 | 14 14 13 47 51 Greatest Support 40 | 20 40 40 40 40 Greatest Overweight (x) 1 | . . . 1 1 Average Overweight (x) . | . . . . 1 Largest Inventory Capacity 20 | 8 8 8 20 20 Average Capacity 14 | 7 8 8 14 20 Most Carried 20 | 8 8 8 18 20 Average Carried 13 | 5 7 8 12 19 Final Capacity 20 | 8 8 8 20 20 Final Carried 20 | 7 8 8 18 20 Class Distribution -------------------- 100% | Mutant Dominant Class ---------------- Mutant | -10/Materials Mutant | -10/Mines Mutant | -10/Exiles Mutant | -9/Mines Resources | -11 -10 -10 -10 -9 ----------- Run | Jun Mat Min Exi Min Matter Collected 440 | 270 32 . 80 58 Remotely . | . . . . . Salvage Created 635 | 132 255 . 142 106 Parts 34 | 7 11 . 8 8 Haulers Intercepted . | . . . . . Recyclers Shooed 1 | . 1 . . . Parts Field Recycled . | . . . . . Retrieved Matter . | . . . . . Parts Self-Destructed . | . . . . . Prevented . | . . . . . Kills | -11 -10 -10 -10 -9 ------- Run | Jun Mat Min Exi Min Combat Hostiles Destroyed 19 | . 6 . . 13 Guns 8 | . 6 . . 2 AOE 11 | . . . . 11 Classes Destroyed 5 | 2 1 . . 2 Worker 1 | . . . . 1 Tunneler 2 | 2 . . . . Recycler 1 | 1 . . . . Grunt 9 | . 6 . 1 2 Assembled 11 | . . . . 11 Best Kill Streak 12 | 3 2 . . 12 Combat Bots Only 11 | . 2 . . 11 Max Kills in Single Turn 6 | 1 1 . 1 6 Gunslinging . | . . . . . Exploded 5 | . . . . 5 Melee . | . . . . . Uniques/NPCs Destroyed . | . . . . . Combat | -11 -10 -10 -10 -9 -------- Run | Jun Mat Min Exi Min Damage Taken 1126 | . 434 . . 692 Core 281 | . 97 . . 184 Absorbed by Shields . | . . . . . Core Remaining (%) 100 | 100 . . . . Volleys Fired 59 | 5 34 . 9 11 Largest 2 | 2 2 . 2 2 Hottest 100 | 80 100 . 80 80 Shots Fired 108 | 9 63 . 16 20 Gun 91 | 9 60 . 16 6 Cannon . | . . . . . Launcher 14 | . . . . 14 Special 3 | . 3 . . . Kinetic . | . . . . . Thermal 90 | 5 63 . 16 6 Explosive 14 | . . . . 14 Electromagnetic 4 | 4 . . . . Robot Hit Streak 13 | 3 13 . 4 8 Robot Miss Streak 3 | 1 3 . 1 2 Penetration Max . | . . . . . Secondary Targets . | . . . . . Shots Hit Robots 69 | 6 42 . 11 10 Core Hits 64 | 4 15 . 5 40 Critical Kills . | . . . . . Critical Parts Destroyed . | . . . . . Critical Strikes . | . . . . . Melee Attacks . | . . . . . Impact . | . . . . . Slashing . | . . . . . Piercing . | . . . . . Sneak Attacks . | . . . . . Combat Hostiles . | . . . . . Follow-up Attacks . | . . . . . Damage Inflicted 1581 | 75 474 . 143 889 Guns 724 | 75 474 . 143 32 Cannons . | . . . . . Explosions 852 | . . . . 852 Melee . | . . . . . Ramming 5 | . . . . 5 Kinetic . | . . . . . Thermal 682 | 33 474 . 143 32 Explosive 852 | . . . . 852 Electromagnetic 42 | 42 . . . . Impact . | . . . . . Slashing . | . . . . . Piercing . | . . . . . Highest Corruption . | . . . . . Average Corruption . | . . . . . Corruption Purged . | . . . . . Corruption Blocked . | . . . . . Overload Shots . | . . . . . Overflow Damage 11 | . . . . 11 Projectiles . | . . . . . Explosions 11 | . . . . 11 Melee . | . . . . . Knockbacks . | . . . . . Impact . | . . . . . Kinetic . | . . . . . Secondary . | . . . . . Self-Inflicted Damage . | . . . . . Shots . | . . . . . Rammed 1 | . . . . 1 Targets Rammed 2 | . 1 . . 1 Kicked 1 | . 1 . . . Crushed . | . . . . . Highest Temperature 294 | 54 294 . 198 99 Average Temperature 83 | 25 100 . 91 33 Received Heat Transfer 246 | . 246 . . . Effects 2 | . 2 . . . Interference 2 | . 2 . . . Siege Activations . | . . . . . Robots Corrupted . | . . . . . Combat Hostiles . | . . . . . Parts Fried . | . . . . . Impact Corruptions . | . . . . . Robots Melted . | . . . . . Combat Hostiles . | . . . . . Parts Melted 5 | . 5 . . . Heat Transferred 1550 | 75 1075 . 325 75 Parts Sabotaged . | . . . . . Parts Stolen . | . . . . . Parts Stripped . | . . . . . Power Chain Reactions . | . . . . . Missiles Intercepted . | . . . . . Alert | -11 -10 -10 -10 -9 ------- Run | Jun Mat Min Exi Min Peak Influence 142 | 15 142 11 . 50 Initial 11 | . 9 11 . . Average 19 | 7 38 11 . 11 Maximum Alert Level . | . . . . . Low Security (%) 100 | 100 100 100 . 100 Level 1 . | . . . . . Level 2 . | . . . . . Level 3 . | . . . . . Level 4 . | . . . . . Level 5 . | . . . . . High Security . | . . . . . Max Security . | . . . . . Squads Dispatched 1 | . . . . 1 Investigation . | . . . . . Extermination . | . . . . . Reinforcement 1 | . . . . 1 Assault . | . . . . . Garrison . | . . . . . Intercept . | . . . . . Searches Triggered . | . . . . . Construction Impeded 1 | . . . . 1 Haulers Reinforced . | . . . . . Active Scanning Responses . | . . . . . Cargo Convoy Interrupts . | . . . . . Stealth | -11 -10 -10 -10 -9 --------- Run | Jun Mat Min Exi Min Distress Signals 1 | . 1 . . . Communications Jammed . | . . . . . Distress Signals . | . . . . . Times Spotted 28 | . 13 . . 15 Peak Tracking Total 18 | . 4 . . 18 Tactical Retreats . | . . . . . Traps | -11 -10 -10 -10 -9 ------- Run | Jun Mat Min Exi Min Traps Triggered . | . . . . . Indirectly . | . . . . . Trap Hack Attempts . | . . . . . Triggered . | . . . . . Disarmed . | . . . . . Reprogrammed . | . . . . . Reused . | . . . . . Traps Extracted . | . . . . . Installed . | . . . . . Triggered . | . . . . . Machines | -11 -10 -10 -10 -9 ---------- Run | Jun Mat Min Exi Min Machines Disabled . | . . . . . Max in Single Turn . | . . . . . Machines Repaired . | . . . . . Machines Sabotaged . | . . . . . Overloaded Fab Kills . | . . . . . Hacking | -11 -10 -10 -10 -9 --------- Run | Jun Mat Min Exi Min Machines Accessed 5 | . 3 . 2 . Terminals 2 | . 2 . . . Fabricators . | . . . . . Repair Stations . | . . . . . Recycling Units 1 | . 1 . . . Scanalyzers . | . . . . . Garrison Access . | . . . . . Total Hacks 24 | . 8 . 16 . Successful 21 | . 5 . 16 . Failed 3 | . 3 . . . Catastrophic 1 | . 1 . . . Database Lockouts . | . . . . . Manual 7 | . 4 . 3 . Terminals 6 | . 6 . . . Fabricators . | . . . . . Repair Stations . | . . . . . Recycling Units 2 | . 2 . . . Scanalyzers . | . . . . . Garrison Access . | . . . . . Terminal Hacks 18 | . 2 . 16 . Record 16 | . . . 16 . Robot Analysis 1 | . 1 . . . Alert Level 1 | . 1 . . . Fabricator Hacks . | . . . . . Repair Station Hacks . | . . . . . Recycling Unit Hacks 1 | . 1 . . . Retrieve Components 1 | . 1 . . . Scanalyzer . | . . . . . Garrison Access Hacks . | . . . . . Unauthorized Hacks 2 | . 2 . . . Terminals 2 | . 2 . . . Botnet 1 | . 1 . . . Operators 1 | . 1 . . . Fabricators . | . . . . . Repair Stations . | . . . . . Recycling Units . | . . . . . Scanalyzers . | . . . . . Garrison Access . | . . . . . Data Cores Recovered . | . . . . . Used . | . . . . . Hacking Detections 3 | . 3 . . . Full Trace Events . | . . . . . Feedback Events . | . . . . . Feedback Blocked . | . . . . . Robot Schematics Acquired . | . . . . . Robots Built . | . . . . . Authchips . | . . . . . Time . | . . . . . Total Robot Build Rating . | . . . . . Part Schematics Acquired . | . . . . . Parts Built . | . . . . . Authchips . | . . . . . Time . | . . . . . Total Part Build Rating . | . . . . . Parts Repaired . | . . . . . Time . | . . . . . Parts Recycled . | . . . . . Recycled Matter . | . . . . . Retrieved Matter . | . . . . . Retrieved Components 10 | . 10 . . . Parts Scanalyzed . | . . . . . Part Schematics Acquired . | . . . . . Parts Damaged . | . . . . . Bothacking | -11 -10 -10 -10 -9 ------------ Run | Jun Mat Min Exi Min Used RIF Installer . | . . . . . Robots Hacked . | . . . . . Non-combat . | . . . . . Combat . | . . . . . Robot Hacks Applied . | . . . . . Relay Couplers Released . | . . . . . Fabnet Peak Effective % . | . . . . . Robots Rewired 3 | . . . 3 . Allies Hacked . | . . . . . Hacks Repelled . | . . . . . Allies | -11 -10 -10 -10 -9 -------- Run | Jun Mat Min Exi Min Total Allies 3 | . . . 3 . Largest Group 3 | . . . 3 2 Highest-Rated Group 24 | . . . 24 16 Highest-Rated Ally 8 | . . . 8 8 Total Orders . | . . . . . Ally Attacks 9 | . . . . 9 Total Damage 66 | . . . . 66 Kills . | . . . . . Allies Corrupted . | . . . . . Allies Melted . | . . . . . Intel | -11 -10 -10 -10 -9 ------- Run | Jun Mat Min Exi Min Robot Analysis Total 1 | . 1 . . . Derelict Logs Recovered 1 | . . . . 1 Drone Launches . | . . . . . Drone Recoveries . | . . . . . Exploration | -11 -10 -10 -10 -9 ------------- Run | Jun Mat Min Exi Min Turns Passed 4122 | 142 675 148 1907 1250 Spaces Moved 1952 | 97 366 92 923 474 Core 11 | 11 . . . . Treads 1677 | . 188 92 923 474 Legs 264 | 86 178 . . . Wheels . | . . . . . Hover . | . . . . . Flight . | . . . . . Fastest Speed 50 | 50 120 160 160 240 Average Speed 191 | 112 140 160 198 240 Slowest Speed 240 | 120 160 160 240 240 Overloaded Moves . | . . . . . Propulsion Burnouts . | . . . . . Robots Hopped . | . . . . . Cave-ins Triggered . | . . . . . Exploration Rate (%) 49 | 6 54 15 93 81 Regions Visited 4 Branch Regions 3 Pre-discovered Areas 1 | . . . . 1 Known Exits Taken . | . . . . . Unknown Exits Taken 4 | 1 1 1 1 . Scrap Searched 2 | . . . . 2 Spaces Dug 3 | . 3 . . . Terrain Destroyed 78 | . 3 . . 75 Melee . | . . . . . Projectile 3 | . 3 . . . AOE 75 | . . . . 75 Terrain Rammed . | . . . . . Walls Destroyed . | . . . . . Machines Disabled . | . . . . . Actions | -11 -10 -10 -10 -9 --------- Run | Jun Mat Min Exi Min Total 2222 | 121 461 93 984 563 Wait 102 | . 31 2 . 69 Move 1948 | 96 365 91 922 474 Hop . | . . . . . Pick Up 43 | 13 13 . 14 3 Fast Attach 1 | 1 . . . . Attach 9 | 6 3 . . . Detach . | . . . . . Swap 12 | . 4 . 4 4 Drop 19 | . 10 . 8 1 Fire 59 | 5 34 . 9 11 Melee . | . . . . . Ram . | . . . . . Kick 1 | . 1 . . . Crush 1 | . . . . 1 Escape Stasis . | . . . . . Rewire 27 | . . . 27 . Trap . | . . . . . Miscellaneous . | . . . . . Route ------- -11/Junkyard -10/Materials -10/Mines -10/Exiles (discovered 2 exits: [*Min x2]) -9/Mines (discovered 1 exit: [*Mat]) History --------- Turn | Location | Event 10 | -11/Junkyard | Discovered new exit (range 16) 143 | -11/Junkyard | Entered Materials 302 | -10/Materials | Build established: Mutant 514 | -10/Materials | Lost 3 parts (1p1n1w) 525 | -10/Materials | Discovered new exit (range 10) 818 | -10/Materials | Entered Mines 942 | -10/Mines | Deemed a non-threat by the Exiles lab entrance 942 | -10/Mines | Discovered new exit (range 5) 966 | -10/Mines | Entered Exiles 966 | -10/Exiles | Found Exiles lab destroyed 987 | -10/Exiles | Discovered new exit (range 15) 2839 | -10/Exiles | Discovered new exit (range 14) 2873 | -10/Exiles | Entered Mines 2873 | -9/Mines | Accompanied by 2 allies 2912 | -9/Mines | A weapon hastily lodged in a ceiling crevice suddenly fell to the ground 3000 | -9/Mines | Found a damaged Exp. Sensor Array with a note attached 3005 | -9/Mines | Found Prototype Device 3006 | -9/Mines | Identified Exp. Sensor Array 3820 | -9/Mines | Learned location of Zion (-6) 3895 | -9/Mines | Assembled infested the area 3907 | -9/Mines | Core integrity fell below 50% 3929 | -9/Mines | Destroyed 11 combat bots 4060 | -9/Mines | Discovered new exit (range 9) 4115 | -9/Mines | Core integrity fell below 20% 4123 | -9/Mines | Destroyed by D-53 Grenadier with Mini Grenade Launcher Last Messages --------------- 03905_ K-01 Serf destroyed. 03905_ as-59428 destroyed. 03905_ as-09512 destroyed. 03908_ as-35306 destroyed. 03908_ as-60216 destroyed. 03908_ as-17701 destroyed. 03908_ K-01 Serf collects debris. 03932_ U-05 Engineer lays Concrete. 04036_ Acquired 38 matter. 04050_ Slammed into T-07 Excavator. 04060_ EXIT=FOUND 04111_ T-07 Excavator destroyed. 04112_ Seismic Survey Station disabled. 04113_ Seismic Detector destroyed. 04114_ The unstable cave ceiling collapses. 04115_ Mak. Power Source destroyed. 04116_ The unstable cave ceiling collapses. 04118_ Grenade Launcher destroyed. 04120_ The unstable cave ceiling collapses. 04122_ Lgt. Treads destroyed. Map ----- +----------------------------------------------------+ | | | | | | | | | | | | | | | ?????????????????????????????????????????????????? | | ?????????????????????????????????????????????????? | | ?????????????????????????????????????????????????? | | ?????????????###?????????????????????????????????? | | ????????????## #?????????????????????????????????? | | ???????????## #?????????????????#####???????????? | | ??????###### #????????????????## #???????????? | | ?????## ##???????????###### #####???????? | | ????## ###???????????## #???????? | | ???## ##?????????????# ## #???????? | | #### ####??????????????# ### #???????? | | ##???############?## ### #???????? | | #????# #?# ## ##??????? | | ##????# """ ### #??????? | | #######?????# """ # #??????? | | #???????????# """ ### #??????? | | ????????????# < ##?# #??????? | | ???#####????# "" #?# #??????? | | #### ##???# "" @ ## #??????? | | ## ##??# "" #?# #??????? | | #### dd #?# #??????? | | ## ## #??????? | | ############ ### #??????? | | #?????????#### ### ######?? | | #??????????# #?? | | ##?????????# #### ### #?? | | ## #?????????# #??? # # ##?# #?? | | #### ########### #????### ####??# #?? | | #??## #??????## #??????# #?? | | ????## ############???????###???????# #?? | | ?????##### ########?????????????????????# #?? | | ?????????## !%] [ #????????????????????## ### | | ??????????# ####### ###?????????????????## # | | ???????##### ##????# ? ????????????????## | | ???????# ###??# ?# ???????????????## | | ???????# #?## ## ##?????????????# | | ???????# ### ##????????????# | | ##?????# #?## ##???????????## / # | | ####### #???# ##### #????????????### ## | | #????###???# #??????????????## #? | | #???????????# ##??????????????# #? | | ##########????????????# ##??????#####??# #? | | %#?????????????????????# #?????## #### #? | +----------------------------------------------------+ Best States ------------- Heat Dissipation 25 Energy Generation 15 Energy Capacity 250 Matter Stores 300 Matter Capacity 300 Sight Range 16 Robot Scan Range 20 Terrain Scan Density 10 Evasion (%) 55 Recoil Reduction 2 Item Schematics ----------------- None Robot Schematics ------------------ None Fabricated ------------ Nothing Alien Tech Used ----------------- None Achievements -------------- None Challenges ------------ None Game ------ Seed ActuatorGyrokineticBattery Manual? 0 Play Time 00:20:19 Cumulative 142.3 hours Start 2023.07.08 @ 12:13:30 End 2023.07.08 @ 15:04:11 Sessions 2 Manual Loads 0 Difficulty Rogue Special Mode None Game No. 40 Rogue 40 Adventurer 0 Explorer 0 Win Type - Total 5 Types 5/0/0/0/0/0/0/0/0 Lore% 41 Gallery% 54 Achievement% 47 Wizard Run 0 Options --------- ASCII 0 Keyboard 0 Movement Mouse Keybinds 0 Fullscreen 2 Font 16/SmallcapsGlow Map View 75x55 Tactical HUD 1 Map Filters NONE Filters NONE Steam 1 RUN: 922f75cb-f5b3-442a-bd31-9e7cc26ad35a